[Event "7. Arber-Senioren-Cup 2019"]
[Site "Bodenmais"]
[Date "2019.08.03"]
[Round "8.17"]
[White "Zwetz, Anita"]
[Black "Schmidt, Matthias"]
[Result "1/2-1/2"]
[ECO "A40"]
[WhiteElo "1828"]
[BlackElo "2020"]
[Annotator "NA"]
[PlyCount "137"]
[EventDate "2019.07.27"]
[EventType "swiss"]
[EventCountry "GER"]
[SourceTitle "playchess.com"]
[Source "ChessBase"]
[SourceQuality "1"]
[TimeControl "5400+30"]

1. d4 {[%emt 0:00:00]} e6 {[%emt 0:00:00]} 2. Nf3 {[%emt 0:00:00]} f5 {[%emt 0:00:00]} 3. Bg5 {[%emt 0:00:00]} Nf6 {[%emt 0:00:00]} 4. e3 {[%emt 0:00:00]} Be7 {[%emt 0:00:00]} 5. Ne5 {[%emt 0:00:00]} O-O {[%emt 0:00:00]} 6. Bc4 {[%emt 0:00:00]} d6 {[%emt 0:00:00]} 7. Nd3 {[%emt 0:00:00]} d5 {[%emt 0:00:00]} 8. Bb3 {[%emt 0:00:00]} Ne4 {[%emt 0:00:00]} 9. Bxe7 {[%emt 0:00:00]} Qxe7 {[%emt 0:00:00]} 10. c4 {[%emt 0:00:00]} c6 {[%emt 0:00:00]} 11. Nd2 {[%emt 0:00:00]} Bd7 {[%emt 0:00:00]} 12. Qe2 {[%emt 0:00:00]} Be8 {[%emt 0:00:00]} 13. h4 {[%emt 0:13:57]} Nd7 {[%emt 0:02:32]} 14. Rh3 {[%emt 0:09:56]} Ndf6 {[%emt 0:03:28]} 15. f3 {[%emt 0:08:31]} Nxd2 {[%emt 0:02:28]} 16. Qxd2 {[%emt 0:00:17]} Kh8 {[%emt 0:01:50]} 17. Ne5 {[%emt 0:04:53]} Nd7 {[%emt 0:02:55]} 18. Nxd7 {[%emt 0:08:07]} Qxd7 {[%emt 0:01:12]} 19. O-O-O {[%emt 0:00:40]} Bh5 {[%emt 0:05:00]} 20. Rg1 {[%emt 0:06:03]} Rad8 {[%emt 0:05:28]} 21. Qc3 {[%emt 0:04:25]} Rf6 {[%emt 0:07:00]} 22. g4 {[%emt 0:01:00]} fxg4 {[%emt 0:00:10]} 23. fxg4 {[%emt 0:00:02]} Bg6 {[%emt 0:00:45]} 24. Bc2 {[%emt 0:02:58]} Bxc2 {[%emt 0:01:14]} 25. Qxc2 {[%emt 0:00:14]} Rdf8 {[%emt 0:00:31]} 26. Rh2 {[%emt 0:01:27]} Rf1+ {[%emt 0:05:40]} 27. Rxf1 {[%emt 0:00:06]} Rxf1+ {[%emt 0:00:12]} 28. Kd2 {[%emt 0:00:06]} Qc7 {[%emt 0:07:13]} 29. Kd3 {[%emt 0:03:00]} dxc4+ {[%emt 0:03:22]} 30. Kxc4 {[%emt 0:00:20]} Qd6 {[%emt 0:02:01]} 31. Kd3 {[%emt 0:08:32]} e5 {[%emt 0:08:55]} 32. Qe2 {[%emt 0:01:20]} e4+ {[%emt 0:05:32]} 33. Kc3 {[%emt 0:01:25]} Qf6 {[%emt 0:04:52]} 34. g5 {[%emt 0:03:48]} Qf5 {[%emt 0:02:18]} 35. b4 {[%emt 0:01:14]} Qf7 {[%emt 0:07:18]} 36. h5 {[%emt 0:00:57]} Qf3 {[%emt 0:04:55]} 37. Qxf3 {[%emt 0:04:31]} Rxf3 {[%emt 0:00:13]} 38. Kd2 {[%emt 0:00:22]} Kg8 {[%emt 0:00:19]} 39. h6 {[%emt 0:01:01]} Rg3 {[%emt 0:01:15]} 40. Rh4 {[%emt 0:02:02]} Rxg5 {[%emt 0:01:58]} 41. a3 {[%emt 0:01:56]} Rg2+ {[%emt 0:01:39]} 42. Kc3 {[%emt 0:00:05]} g5 {[%emt 0:00:19]} 43. Rxe4 {[%emt 0:00:16]} Kf7 {[%emt 0:00:32]} 44. Re5 {[%emt 0:00:40]} g4 {[%emt 0:02:58]} 45. Rg5 {[%emt 0:00:17]} g3 {[%emt 0:01:01]} 46. Rg7+ {[%emt 0:00:09]} Kf6 {[%emt 0:03:34]} 47. e4 {[%emt 0:00:41]} Rg1 {[%emt 0:01:23]} 48. e5+ {[%emt 0:00:21]} Ke6 {[%emt 0:00:24]} 49. Kb2 {[%emt 0:01:08]} g2 {[%emt 0:01:47]} 50. Ka2 {[%emt 0:01:25]} b6 {[%emt 0:02:14]} 51. Kb2 {[%emt 0:00:13]} a6 {[%emt 0:01:01]} 52. a4 {[%emt 0:00:33]} Rh1 {[%emt 0:01:09]} 53. Rxg2 {[%emt 0:00:07]} Rxh6 {[%emt 0:00:03]} 54. Rg3 {[%emt 0:00:54]} Kd5 {[%emt 0:00:17]} 55. Kc3 {[%emt 0:00:03]} Rh4 {[%emt 0:00:52]} 56. Rg7 {[%emt 0:05:35]} Rh3+ {[%emt 0:03:13]} 57. Kd2 {[%emt 0:00:35]} Kxd4 {[%emt 0:02:21]} 58. e6 {[%emt 0:00:06]} Rd3+ {[%emt 0:00:08]} 59. Kc2 {[%emt 0:00:19]} Re3 {[%emt 0:00:24]} 60. Rxh7 {[%emt 0:05:12]} Rxe6 {[%emt 0:00:03]} 61. Rh4+ {[%emt 0:00:09]} Kd5 {[%emt 0:02:23]} 62. Rh3 {[%emt 0:00:54]} c5 {[%emt 0:00:14]} 63. Kc3 {[%emt 0:01:44]} cxb4+ {[%emt 0:00:05]} 64. Kxb4 {[%emt 0:00:03]} Re4+ {[%emt 0:00:18]} 65. Kb3 {[%emt 0:00:18]} a5 {[%emt 0:00:24]} 66. Rh6 {[%emt 0:01:34]} Re3+ {[%emt 0:00:14]} 67. Kb2 {[%emt 0:00:21]} Kc5 {[%emt 0:00:22]} 68. Rh5+ {[%emt 0:00:28]} Kb4 69. Rh1 1/2-1/2

[Event "7. Arber-Senioren-Cup 2019"]
[Site "Bodenmais"]
[Date "2019.08.03"]
[Round "8.18"]
[White "Mahnke, Ralf, Dr."]
[Black "Kirschner, Torsten"]
[Result "1-0"]
[ECO "E98"]
[WhiteElo "1925"]
[BlackElo "1767"]
[Annotator "NA"]
[PlyCount "69"]
[EventDate "2019.07.27"]
[EventType "swiss"]
[EventCountry "GER"]
[SourceTitle "playchess.com"]
[Source "ChessBase"]
[SourceQuality "1"]
[TimeControl "5400+30"]

1. d4 {[%emt 0:00:00]} Nf6 {[%emt 0:00:00]} 2. c4 {[%emt 0:00:00]} g6 {[%emt 0:00:00]} 3. Nc3 {[%emt 0:00:00]} Bg7 {[%emt 0:00:00]} 4. e4 {[%emt 0:00:00]} d6 {[%emt 0:00:00]} 5. Be2 {[%emt 0:00:00]} O-O {[%emt 0:00:00]} 6. Nf3 {[%emt 0:00:00]} e5 {[%emt 0:00:00]} 7. O-O {[%emt 0:00:00]} Nc6 {[%emt 0:00:00]} 8. d5 {[%emt 0:00:00]} Ne7 {[%emt 0:00:00]} 9. Ne1 {[%emt 0:00:00]} Ne8 {[%emt 0:00:00]} 10. Be3 {[%emt 0:00:00]} f5 {[%emt 0:00:00]} 11. f3 {[%emt 0:00:00]} f4 {[%emt 0:00:00]} 12. Bf2 {[%emt 0:00:00]} g5 {[%emt 0:00:00]} 13. c5 {[%emt 0:00:00]} a6 {[%emt 0:00:00]} 14. Nd3 {[%emt 0:00:00]} Ng6 {[%emt 0:00:00]} 15. a4 {[%emt 0:00:00]} Rf7 {[%emt 0:00:00]} 16. Be1 {[%emt 0:00:00]} Bf8 {[%emt 0:00:00]} 17. b4 {[%emt 0:00:00]} h5 {[%emt 0:00:00]} 18. a5 {[%emt 0:00:00]} Nf6 {[%emt 0:00:00]} 19. cxd6 {[%emt 0:00:00]} Bxd6 {[%emt 0:00:00]} 20. b5 {[%emt 0:00:00]} g4 {[%emt 0:09:14]} 21. bxa6 {[%emt 0:00:00]} bxa6 {[%emt 0:01:54]} 22. Na4 {[%emt 0:00:00]} Qe7 {[%emt 0:08:27]} 23. Rb1 {[%emt 0:00:00]} Rg7 {[%emt 0:04:20]} 24. Bb4 {[%emt 0:00:00]} g3 {[%emt 0:06:37]} 25. Bxd6 {[%emt 0:00:00]} cxd6 {[%emt 0:09:08]} 26. Nb6 {[%emt 0:00:00]} Nxd5 {[%emt 0:07:54]} 27. Nxc8 {[%emt 0:00:49]} Qh4 {[%emt 0:06:42]} 28. h3 {[%emt 0:00:52]} Ne3 {[%emt 0:04:34]} 29. Qb3+ {[%emt 0:01:24]} Kh7 {[%emt 0:00:35]} 30. Nxd6 {[%emt 0:01:43]} Nxf1 {[%emt 0:12:25]} 31. Bxf1 {[%emt 0:00:23]} Qg5 {[%emt 0:00:26]} 32. Nf5 {[%emt 0:02:06]} Rc7 {[%emt 0:04:19]} 33. Qe6 {[%emt 0:04:57]} Ne7 {[%emt 0:09:44]} 34. Qxe5 {[%emt 0:02:33]} Rac8 {[%emt 0:01:24]} 35. Nxf4 {[%emt 0:05:26]} 1-0

[Event "7. Arber-Senioren-Cup 2019"]
[Site "Bodenmais"]
[Date "2019.08.03"]
[Round "8.19"]
[White "Halli, Gerhard"]
[Black "Riedl, Maximilian"]
[Result "1/2-1/2"]
[ECO "D00"]
[WhiteElo "1955"]
[BlackElo "1905"]
[Annotator "NA"]
[PlyCount "51"]
[EventDate "2019.07.27"]
[EventType "swiss"]
[EventCountry "GER"]
[SourceTitle "playchess.com"]
[Source "ChessBase"]
[SourceQuality "1"]
[TimeControl "5400+30"]

1. d4 {[%emt 0:00:00]} d5 {[%emt 0:00:00]} 2. Bf4 {[%emt 0:00:00]} Bf5 {[%emt 0:00:00]} 3. e3 {[%emt 0:00:00]} e6 {[%emt 0:00:00]} 4. Bd3 {[%emt 0:00:00]} Bxd3 {[%emt 0:00:00]} 5. Qxd3 {[%emt 0:00:00]} c6 {[%emt 0:00:00]} 6. Nf3 {[%emt 0:00:00]} Nd7 {[%emt 0:00:00]} 7. Nbd2 {[%emt 0:00:00]} Ngf6 {[%emt 0:00:00]} 8. h3 {[%emt 0:00:00]} Be7 {[%emt 0:00:00]} 9. O-O {[%emt 0:00:00]} O-O {[%emt 0:00:00]} 10. c3 {[%emt 0:00:00]} c5 {[%emt 0:00:00]} 11. Bh2 {[%emt 0:00:00]} c4 {[%emt 0:00:00]} 12. Qc2 {[%emt 0:00:00]} b5 {[%emt 0:00:00]} 13. e4 {[%emt 0:00:00]} dxe4 {[%emt 0:00:00]} 14. Nxe4 {[%emt 0:00:00]} Nxe4 {[%emt 0:00:00]} 15. Qxe4 {[%emt 0:00:00]} Nf6 {[%emt 0:00:00]} 16. Qb7 {[%emt 0:00:00]} Qd7 {[%emt 0:00:00]} 17. Qa6 {[%emt 0:00:00]} Qd5 {[%emt 0:00:00]} 18. a4 {[%emt 0:00:00]} b4 {[%emt 0:00:00]} 19. cxb4 {[%emt 0:00:00]} Bxb4 {[%emt 0:00:00]} 20. Rac1 {[%emt 0:00:00]} Rfc8 {[%emt 0:00:00]} 21. Rc2 {[%emt 0:00:00]} Rc6 {[%emt 0:00:00]} 22. Qb7 {[%emt 0:00:00]} Rb6 {[%emt 0:00:00]} 23. Qc7 {[%emt 0:00:00]} Rc6 {[%emt 0:00:00]} 24. Qb7 {[%emt 0:00:00]} Rb6 {[%emt 0:00:00]} 25. Qc7 {[%emt 0:00:00]} Rc6 {[%emt 0:00:00]} 26. Qb7 {[%emt 0:00:00]} 1/2-1/2

[Event "7. Arber-Senioren-Cup 2019"]
[Site "Bodenmais"]
[Date "2019.08.03"]
[Round "8.20"]
[White "Meul, Willi"]
[Black "Wolff, Peter"]
[Result "1/2-1/2"]
[ECO "D00"]
[WhiteElo "1904"]
[BlackElo "1915"]
[Annotator "NA"]
[PlyCount "28"]
[EventDate "2019.07.27"]
[EventType "swiss"]
[EventCountry "GER"]
[SourceTitle "playchess.com"]
[Source "ChessBase"]
[SourceQuality "1"]
[TimeControl "5400+30"]

1. d4 {[%emt 0:00:00]} d5 {[%emt 0:00:00]} 2. Bf4 {[%emt 0:00:00]} Nf6 {[%emt 0:00:00]} 3. e3 {[%emt 0:00:00]} c5 {[%emt 0:00:00]} 4. Nd2 {[%emt 0:00:00]} Nc6 {[%emt 0:00:00]} 5. c3 {[%emt 0:00:00]} Bf5 {[%emt 0:00:00]} 6. Ngf3 {[%emt 0:00:00]} Qb6 {[%emt 0:00:00]} 7. Qb3 {[%emt 0:00:00]} c4 {[%emt 0:00:00]} 8. Qxb6 {[%emt 0:00:00]} axb6 {[%emt 0:00:00]} 9. Be2 {[%emt 0:00:00]} e6 {[%emt 0:00:00]} 10. O-O {[%emt 0:00:00]} b5 {[%emt 0:00:00]} 11. Nh4 {[%emt 0:00:00]} Bg6 {[%emt 0:00:00]} 12. a3 {[%emt 0:00:00]} Be7 {[%emt 0:00:00]} 13. Nxg6 {[%emt 0:00:00]} hxg6 {[%emt 0:00:00]} 14. f3 {[%emt 0:00:00]} O-O {[%emt 0:00:00]} 1/2-1/2

[Event "7. Arber-Senioren-Cup 2019"]
[Site "Bodenmais"]
[Date "2019.08.03"]
[Round "8.21"]
[White "Wittkugel, Friedhelm"]
[Black "Braeu, Ludwig"]
[Result "0-1"]
[ECO "A43"]
[WhiteElo "1920"]
[BlackElo "1818"]
[Annotator "NA"]
[PlyCount "86"]
[EventDate "2019.07.27"]
[EventType "swiss"]
[EventCountry "GER"]
[SourceTitle "playchess.com"]
[Source "ChessBase"]
[SourceQuality "1"]
[TimeControl "5400+30"]

1. d4 {[%emt 0:00:00]} c5 {[%emt 0:00:00]} 2. e3 {[%emt 0:00:00]} d5 {[%emt 0:00:00]} 3. c4 {[%emt 0:00:00]} e6 {[%emt 0:00:00]} 4. a3 {[%emt 0:00:00]} Nf6 {[%emt 0:00:00]} 5. Nc3 {[%emt 0:00:00]} Nc6 {[%emt 0:00:00]} 6. Nf3 {[%emt 0:00:00]} a6 {[%emt 0:00:00]} 7. dxc5 {[%emt 0:00:00]} Bxc5 {[%emt 0:00:00]} 8. b4 {[%emt 0:00:00]} Be7 {[%emt 0:00:00]} 9. cxd5 {[%emt 0:00:00]} exd5 {[%emt 0:00:00]} 10. Bb2 {[%emt 0:00:00]} O-O {[%emt 0:00:00]} 11. Be2 {[%emt 0:00:00]} Qd6 {[%emt 0:00:00]} 12. O-O {[%emt 0:00:00]} Rd8 {[%emt 0:00:00]} 13. Nd4 {[%emt 0:00:00]} Ne5 {[%emt 0:00:00]} 14. h3 {[%emt 0:00:00]} Be6 {[%emt 0:00:00]} 15. b5 {[%emt 0:00:00]} Nc4 {[%emt 0:03:29]} 16. Bxc4 {[%emt 0:00:00]} dxc4 {[%emt 0:00:07]} 17. bxa6 {[%emt 0:00:00]} Qxa6 {[%emt 0:12:05]} 18. Qe2 {[%emt 0:00:57]} Rac8 {[%emt 0:06:26]} 19. Rfd1 {[%emt 0:02:21]} Nd5 {[%emt 0:06:29]} 20. Rdc1 {[%emt 0:06:30]} Nxc3 {[%emt 0:03:43]} 21. Bxc3 {[%emt 0:01:27]} b5 {[%emt 0:02:25]} 22. Rcb1 {[%emt 0:02:37]} Rb8 {[%emt 0:01:08]} 23. Qf3 {[%emt 0:03:09]} Bd7 {[%emt 0:07:51]} 24. Qg3 {[%emt 0:13:24]} Bf8 {[%emt 0:01:59]} 25. e4 {[%emt 0:02:05]} Qg6 {[%emt 0:03:44]} 26. Qe3 {[%emt 0:03:53]} Re8 {[%emt 0:02:54]} 27. Re1 {[%emt 0:03:35]} Bc5 {[%emt 0:04:35]} 28. f4 {[%emt 0:08:01]} f5 {[%emt 0:05:38]} 29. e5 {[%emt 0:03:06]} Qb6 {[%emt 0:04:21]} 30. Qd2 {[%emt 0:03:17]} Red8 {[%emt 0:02:26]} 31. Red1 {[%emt 0:03:03]} Be8 {[%emt 0:03:45]} 32. Qb2 {[%emt 0:04:21]} Rd5 {[%emt 0:02:03]} 33. Kf2 {[%emt 0:03:48]} Rbd8 {[%emt 0:02:23]} 34. Ke3 {[%emt 0:00:02]} g5 {[%emt 0:02:04]} 35. g3 {[%emt 0:02:29]} Qh6 {[%emt 0:05:34]} 36. Qg2 {[%emt 0:00:07]} R8d7 {[%emt 0:02:17]} 37. Qf2 {[%emt 0:02:44]} Qxh3 {[%emt 0:06:07]} 38. Rh1 {[%emt 0:08:05]} Qg4 {[%emt 0:00:23]} 39. Rhd1 {[%emt 0:01:54]} Rxe5+ {[%emt 0:02:13]} 40. Kd2 {[%emt 0:03:52]} Re4 {[%emt 0:01:22]} 41. Kc1 {[%emt 0:02:55]} Bh5 {[%emt 0:03:23]} 42. Rd2 {[%emt 0:00:59]} gxf4 {[%emt 0:01:25]} 43. gxf4 {[%emt 0:00:29]} Rxf4 {[%emt 0:00:39]} 0-1

[Event "7. Arber-Senioren-Cup 2019"]
[Site "Bodenmais"]
[Date "2019.08.03"]
[Round "8.22"]
[White "Supplieth, Peter"]
[Black "Wacker, Manfred"]
[Result "1/2-1/2"]
[ECO "A15"]
[WhiteElo "1880"]
[BlackElo "1741"]
[Annotator "NA"]
[PlyCount "38"]
[EventDate "2019.07.27"]
[EventType "swiss"]
[EventCountry "GER"]
[SourceTitle "playchess.com"]
[Source "ChessBase"]
[SourceQuality "1"]
[TimeControl "5400+30"]

1. c4 {[%emt 0:00:00]} Nf6 {[%emt 0:00:00]} 2. g3 {[%emt 0:00:00]} g6 {[%emt 0:00:00]} 3. Nc3 {[%emt 0:00:00]} Bg7 {[%emt 0:00:00]} 4. Bg2 {[%emt 0:00:00]} c6 {[%emt 0:00:00]} 5. e4 {[%emt 0:00:00]} d6 {[%emt 0:00:00]} 6. Nge2 {[%emt 0:00:00]} e5 {[%emt 0:00:00]} 7. d3 {[%emt 0:00:00]} Nbd7 {[%emt 0:00:00]} 8. O-O {[%emt 0:00:00]} O-O {[%emt 0:00:00]} 9. f4 {[%emt 0:00:00]} Ng4 {[%emt 0:00:00]} 10. d4 {[%emt 0:00:00]} exd4 {[%emt 0:00:00]} 11. Nxd4 {[%emt 0:00:00]} Nc5 {[%emt 0:00:00]} 12. f5 {[%emt 0:00:00]} Ne5 {[%emt 0:00:00]} 13. Be3 {[%emt 0:03:00]} Nxc4 {[%emt 0:00:00]} 14. Qe2 {[%emt 0:01:11]} Nxe3 {[%emt 0:00:00]} 15. Qxe3 {[%emt 0:00:05]} Bf6 {[%emt 0:05:06]} 16. Rad1 {[%emt 0:02:24]} Qe7 {[%emt 0:03:04]} 17. Qf2 {[%emt 0:07:33]} Nd7 {[%emt 0:02:53]} 18. Rfe1 {[%emt 0:10:15]} Ne5 {[%emt 0:05:57]} 19. h3 {[%emt 0:00:21]} Rb8 {[%emt 0:05:01]} 1/2-1/2

[Event "7. Arber-Senioren-Cup 2019"]
[Site "Bodenmais"]
[Date "2019.08.03"]
[Round "8.23"]
[White "Gerl, Hans, Dr."]
[Black "Trinkl, Andreas"]
[Result "1-0"]
[ECO "E14"]
[WhiteElo "1955"]
[BlackElo "1620"]
[Annotator "NA"]
[PlyCount "61"]
[EventDate "2019.07.27"]
[EventType "swiss"]
[EventCountry "GER"]
[SourceTitle "playchess.com"]
[Source "ChessBase"]
[SourceQuality "1"]
[TimeControl "5400+30"]

1. d4 {[%emt 0:00:00]} e6 {[%emt 0:00:00]} 2. c4 {[%emt 0:00:00]} d5 {[%emt 0:00:00]} 3. e3 {[%emt 0:00:00]} Nf6 {[%emt 0:00:00]} 4. Nf3 {[%emt 0:00:00]} Be7 {[%emt 0:00:00]} 5. Nc3 {[%emt 0:00:00]} O-O {[%emt 0:00:00]} 6. b3 {[%emt 0:00:00]} b6 {[%emt 0:00:00]} 7. Bd3 {[%emt 0:00:00]} Bb7 {[%emt 0:00:00]} 8. O-O {[%emt 0:00:00]} Nbd7 {[%emt 0:00:00]} 9. Bb2 {[%emt 0:00:00]} c5 {[%emt 0:00:00]} 10. Rc1 {[%emt 0:00:00]} Rc8 {[%emt 0:00:00]} 11. Qe2 {[%emt 0:00:00]} cxd4 {[%emt 0:00:00]} 12. exd4 {[%emt 0:00:00]} Bd6 {[%emt 0:00:00]} 13. Nb5 {[%emt 0:00:00]} Bb8 {[%emt 0:00:00]} 14. Ba3 {[%emt 0:00:00]} dxc4 {[%emt 0:16:20]} 15. bxc4 {[%emt 0:00:00]} Re8 {[%emt 0:02:13]} 16. Nd6 {[%emt 0:00:00]} Bxd6 {[%emt 0:01:53]} 17. Bxd6 {[%emt 0:00:00]} Nf8 {[%emt 0:00:26]} 18. c5 {[%emt 0:00:00]} Ng6 {[%emt 0:08:41]} 19. Rfd1 {[%emt 0:00:00]} bxc5 {[%emt 0:10:21]} 20. dxc5 {[%emt 0:00:00]} Qa5 {[%emt 0:03:01]} 21. Nd4 {[%emt 0:00:00]} Bd5 {[%emt 0:04:34]} 22. Ba6 {[%emt 0:00:00]} Ra8 {[%emt 0:08:17]} 23. c6 {[%emt 0:00:00]} Ne4 {[%emt 0:01:27]} 24. Qb5 {[%emt 0:00:00]} Qxa2 {[%emt 0:12:05]} 25. Bg3 {[%emt 0:00:00]} Nf4 {[%emt 0:14:18]} 26. Ra1 {[%emt 0:05:31]} Rab8 {[%emt 0:03:46]} 27. Qxb8 {[%emt 0:01:48]} Rxb8 {[%emt 0:00:36]} 28. Rxa2 {[%emt 0:00:16]} Bxa2 {[%emt 0:06:02]} 29. Bxf4 {[%emt 0:00:31]} Re8 {[%emt 0:04:51]} 30. c7 {[%emt 0:00:43]} f6 {[%emt 0:01:39]} 31. Nc6 {[%emt 0:02:00]} 1-0

[Event "7. Arber-Senioren-Cup 2019"]
[Site "Bodenmais"]
[Date "2019.08.03"]
[Round "8.24"]
[White "Moser, Andreas"]
[Black "Ketzscher, Roland"]
[Result "1/2-1/2"]
[ECO "C17"]
[WhiteElo "1693"]
[BlackElo "1917"]
[Annotator "NA"]
[PlyCount "31"]
[EventDate "2019.07.27"]
[EventType "swiss"]
[EventCountry "GER"]
[SourceTitle "playchess.com"]
[Source "ChessBase"]
[SourceQuality "1"]
[TimeControl "5400+30"]

1. e4 {[%emt 0:00:00]} e6 {[%emt 0:00:00]} 2. d4 {[%emt 0:00:00]} d5 {[%emt 0:00:00]} 3. Nc3 {[%emt 0:00:00]} Bb4 {[%emt 0:00:00]} 4. e5 {[%emt 0:00:00]} c5 {[%emt 0:00:00]} 5. Bd2 {[%emt 0:00:00]} Ne7 {[%emt 0:00:00]} 6. Nb5 {[%emt 0:00:00]} Bxd2+ {[%emt 0:00:00]} 7. Qxd2 {[%emt 0:00:00]} O-O {[%emt 0:00:00]} 8. Nd6 {[%emt 0:00:00]} cxd4 {[%emt 0:00:00]} 9. O-O-O {[%emt 0:00:00]} Nbc6 {[%emt 0:00:00]} 10. f4 {[%emt 0:00:00]} Qb6 {[%emt 0:00:00]} 11. Nf3 {[%emt 0:00:00]} Bd7 {[%emt 0:00:00]} 12. Nxd4 {[%emt 0:00:00]} Nxd4 {[%emt 0:00:00]} 13. Qxd4 Qxd4 14. Rxd4 {[%emt 0:00:00]} Bc6 {[%emt 0:00:00]} 15. Be2 {[%emt 0:00:00]} Rad8 {[%emt 0:00:00]} 16. h4 {[%emt 0:00:00]} 1/2-1/2

[Event "7. Arber-Senioren-Cup 2019"]
[Site "Bodenmais"]
[Date "2019.08.03"]
[Round "8.25"]
[White "Schmid, Johann"]
[Black "Gaedt, Mario"]
[Result "1/2-1/2"]
[ECO "A48"]
[WhiteElo "1842"]
[BlackElo "1502"]
[Annotator "NA"]
[PlyCount "65"]
[EventDate "2019.07.27"]
[EventType "swiss"]
[EventCountry "GER"]
[SourceTitle "playchess.com"]
[Source "ChessBase"]
[SourceQuality "1"]
[TimeControl "5400+30"]

1. d4 {[%emt 0:00:00]} Nf6 {[%emt 0:00:00]} 2. Nf3 {[%emt 0:00:00]} g6 {[%emt 0:00:00]} 3. Bf4 {[%emt 0:00:00]} Bg7 {[%emt 0:00:00]} 4. e3 {[%emt 0:00:00]} O-O {[%emt 0:00:00]} 5. Be2 {[%emt 0:00:00]} Re8 {[%emt 0:00:00]} 6. h3 {[%emt 0:00:00]} d6 {[%emt 0:00:00]} 7. O-O {[%emt 0:00:00]} c5 {[%emt 0:00:00]} 8. c3 {[%emt 0:00:00]} b6 {[%emt 0:00:00]} 9. Nbd2 {[%emt 0:00:00]} Bb7 {[%emt 0:00:00]} 10. Bh2 {[%emt 0:00:00]} Nbd7 {[%emt 0:00:00]} 11. Qc2 {[%emt 0:00:00]} Rc8 {[%emt 0:00:00]} 12. Rad1 {[%emt 0:00:00]} Qc7 {[%emt 0:00:00]} 13. a3 {[%emt 0:00:00]} Qb8 {[%emt 0:00:00]} 14. Qb3 {[%emt 0:00:00]} Qa8 {[%emt 0:00:00]} 15. Ng5 {[%emt 0:00:00]} d5 {[%emt 0:00:00]} 16. Rfe1 {[%emt 0:01:30]} e6 {[%emt 0:00:00]} 17. Bf1 {[%emt 0:03:17]} cxd4 {[%emt 0:00:00]} 18. exd4 {[%emt 0:00:45]} Nf8 {[%emt 0:00:00]} 19. Ngf3 {[%emt 0:02:01]} N8d7 {[%emt 0:00:21]} 20. Ne5 {[%emt 0:00:37]} Re7 {[%emt 0:04:01]} 21. Ndf3 {[%emt 0:02:17]} Ne4 {[%emt 0:02:19]} 22. Qc2 {[%emt 0:04:17]} a6 {[%emt 0:02:55]} 23. Bd3 {[%emt 0:06:21]} Nef6 {[%emt 0:05:38]} 24. Qe2 {[%emt 0:03:09]} Nf8 {[%emt 0:02:48]} 25. Ng5 {[%emt 0:01:47]} b5 {[%emt 0:06:36]} 26. Qf3 {[%emt 0:02:55]} h6 {[%emt 0:01:56]} 27. Ngxf7 {[%emt 0:10:49]} Rxf7 {[%emt 0:00:34]} 28. Nxf7 {[%emt 0:01:33]} Kxf7 {[%emt 0:00:25]} 29. h4 {[%emt 0:00:44]} Re8 {[%emt 0:02:06]} 30. g4 {[%emt 0:00:10]} Kg8 {[%emt 0:01:11]} 31. g5 {[%emt 0:05:01]} hxg5 {[%emt 0:04:33]} 32. hxg5 {[%emt 0:00:15]} N6h7 {[%emt 0:00:32]} 33. Ra1 1/2-1/2

[Event "7. Arber-Senioren-Cup 2019"]
[Site "Bodenmais"]
[Date "2019.08.03"]
[Round "8.27"]
[White "Otto, Klaus"]
[Black "Klimpel, Siegfried"]
[Result "0-1"]
[ECO "B28"]
[WhiteElo "1725"]
[BlackElo "1843"]
[Annotator "NA"]
[PlyCount "58"]
[EventDate "2019.07.27"]
[EventType "swiss"]
[EventCountry "GER"]
[SourceTitle "playchess.com"]
[Source "ChessBase"]
[SourceQuality "1"]
[TimeControl "5400+30"]

1. e4 {[%emt 0:00:00]} c5 {[%emt 0:00:00]} 2. Nf3 {[%emt 0:00:00]} a6 {[%emt 0:00:00]} 3. d4 {[%emt 0:00:00]} cxd4 {[%emt 0:00:00]} 4. Nxd4 {[%emt 0:00:00]} e5 {[%emt 0:00:00]} 5. Nf3 {[%emt 0:00:00]} Nc6 {[%emt 0:00:00]} 6. Be2 {[%emt 0:00:00]} Nf6 {[%emt 0:00:00]} 7. Nbd2 {[%emt 0:00:00]} Be7 {[%emt 0:00:00]} 8. O-O {[%emt 0:00:00]} O-O {[%emt 0:00:00]} 9. c3 {[%emt 0:00:00]} Qc7 {[%emt 0:00:00]} 10. Qc2 {[%emt 0:00:00]} d5 {[%emt 0:00:00]} 11. exd5 {[%emt 0:00:00]} Nxd5 {[%emt 0:00:00]} 12. Bc4 {[%emt 0:00:00]} Be6 {[%emt 0:00:00]} 13. Re1 {[%emt 0:00:00]} Rad8 {[%emt 0:00:00]} 14. Bd3 {[%emt 0:00:00]} f5 {[%emt 0:00:00]} 15. Bc4 {[%emt 0:00:00]} b5 {[%emt 0:02:08]} 16. Bb3 {[%emt 0:00:00]} Nf4 {[%emt 0:03:29]} 17. Bxe6+ {[%emt 0:00:00]} Nxe6 {[%emt 0:00:30]} 18. h3 {[%emt 0:00:00]} Kh8 {[%emt 0:03:02]} 19. Nf1 {[%emt 0:00:00]} e4 {[%emt 0:01:18]} 20. N3h2 {[%emt 0:00:00]} Nc5 {[%emt 0:02:23]} 21. Rd1 {[%emt 0:08:10]} Nd3 {[%emt 0:03:40]} 22. Qe2 {[%emt 0:05:13]} Nce5 {[%emt 0:20:51]} 23. Rb1 {[%emt 0:17:28]} Nxc1 {[%emt 0:06:26]} 24. Rbxc1 {[%emt 0:01:11]} Nd3 {[%emt 0:00:50]} 25. Rc2 {[%emt 0:01:05]} Bd6 {[%emt 0:10:12]} 26. g3 {[%emt 0:15:17]} Rde8 {[%emt 0:05:22]} 27. Kg2 {[%emt 0:05:34]} f4 {[%emt 0:04:22]} 28. Qg4 {[%emt 0:05:21]} Qb6 {[%emt 0:07:55]} 29. Kg1 {[%emt 0:07:11]} fxg3 {[%emt 0:03:41]} 0-1